[Event "Late Titled Tuesday Blitz February 8 2022"]
[White "Mamedyarov, Shakhriyar"]
[Black "Riehle, Marco"]
[WhiteFideId "13401319"]
[BlackFideId "12904392"]
[WhiteElo "2769"]
[BlackElo "2462"]
[Result "1-0"]
[Round "02"]
[TimeControl "180+1"]
[Date "2022.02.08"]
[WhiteClock "0:00:10"]
[BlackClock "0:00:58"]

1. e4 {[%clk 0:03:00]}  e5 {[%clk 0:02:59]} 2. Nc3 {[%clk 0:02:58]}  Nf6 {[%clk 0:02:59]} 3. d4 {[%clk 0:02:58]}  exd4 {[%clk 0:02:59]} 4. Qxd4 {[%clk 0:02:59]}  Nc6 {[%clk 0:02:59]} 5. Qd3 {[%clk 0:02:59]}  Bb4 {[%clk 0:02:58]} 6. Bd2 {[%clk 0:02:57]}  O-O {[%clk 0:02:58]} 7. O-O-O {[%clk 0:02:56]}  Re8 {[%clk 0:02:59]} 8. Nge2 {[%clk 0:02:56]}  a5 {[%clk 0:02:52]} 9. a3 {[%clk 0:02:45]}  Bc5 {[%clk 0:02:51]} 10. f4 {[%clk 0:02:23]}  d6 {[%clk 0:02:50]} 11. h3 {[%clk 0:02:23]}  Bd7 {[%clk 0:02:42]} 12. g4 {[%clk 0:02:22]}  b5 {[%clk 0:02:39]} 13. g5 {[%clk 0:02:13]}  Nh5 {[%clk 0:02:38]} 14. Nxb5 {[%clk 0:02:08]}  Rb8 {[%clk 0:02:34]} 15. Nec3 {[%clk 0:02:04]}  a4 {[%clk 0:02:02]} 16. Be2 {[%clk 0:01:59]}  g6 {[%clk 0:02:01]} 17. Bxh5 {[%clk 0:01:53]}  gxh5 {[%clk 0:02:02]} 18. Nd5 {[%clk 0:01:53]}  Ne5 {[%clk 0:01:48]} 19. fxe5 {[%clk 0:01:45]}  Bxb5 {[%clk 0:01:47]} 20. c4 {[%clk 0:01:43]}  Bc6 {[%clk 0:01:45]} 21. Nf6+ {[%clk 0:01:39]}  Kf8 {[%clk 0:01:45]} 22. Bc3 {[%clk 0:01:26]}  Re6 {[%clk 0:01:34]} 23. Nxh7+ {[%clk 0:01:18]}  Kg8 {[%clk 0:01:29]} 24. Nf6+ {[%clk 0:01:17]}  Kf8 {[%clk 0:01:30]} 25. Rhf1 {[%clk 0:01:15]}  Qe7 {[%clk 0:01:21]} 26. g6 {[%clk 0:01:12]}  Rxe5 {[%clk 0:01:18]} 27. Qg3 {[%clk 0:00:20]}  Qe6 {[%clk 0:01:10]} 28. g7+ {[%clk 0:00:19]}  Ke7 {[%clk 0:01:08]} 29. g8=Q {[%clk 0:00:16]}  Rxg8 {[%clk 0:01:08]} 30. Nxg8+ {[%clk 0:00:15]}  Kd8 {[%clk 0:01:04]} 31. Qxe5 {[%clk 0:00:12]}  Be3+ {[%clk 0:01:05]} 32. Kb1 {[%clk 0:00:11]}  Qxc4 {[%clk 0:01:02]} 33. Qf6+ {[%clk 0:00:10]}  Kc8 {[%clk 0:01:01]} 34. Ne7+ {[%clk 0:00:10]}  Kb7 {[%clk 0:01:02]} 35. Nxc6 {[%clk 0:00:10]}  Qxc6 {[%clk 0:01:03]} 36. Qf5 {[%clk 0:00:09]}  Qe8 {[%clk 0:01:01]} 37. Qd5+ {[%clk 0:00:09]}  c6 {[%clk 0:01:00]} 38. Qxf7+ {[%clk 0:00:10]}  Qxf7 {[%clk 0:01:00]} 39. Rxf7+ {[%clk 0:00:10]}  Ka6 {[%clk 0:01:01]} 40. Rxd6 {[%clk 0:00:11]}  h4 {[%clk 0:01:02]} 41. Rff6 {[%clk 0:00:11]}  Kb5 {[%clk 0:01:01]} 42. Rxc6 {[%clk 0:00:12]}  Bd4 {[%clk 0:00:58]} 43. Bxd4 {[%clk 0:00:10]} 1-0


[Site "https://www.chess.com"]

[Event "Late Titled Tuesday Blitz February 8 2022"]
[White "Marcziter, Dmitrii"]
[Black "Erdogdu, Mert"]
[WhiteFideId "13900765"]
[BlackFideId "6301495"]
[WhiteElo "2155"]
[BlackElo "2485"]
[Result "0-1"]
[Round "02"]
[TimeControl "180+1"]
[Date "2022.02.09"]
[WhiteClock "0:01:24"]
[BlackClock "0:00:41"]

1. d4 {[%clk 0:03:00]}  d5 {[%clk 0:02:59]} 2. c4 {[%clk 0:02:57]}  e6 {[%clk 0:02:59]} 3. Nc3 {[%clk 0:02:56]}  c5 {[%clk 0:02:59]} 4. e3 {[%clk 0:02:55]}  Nf6 {[%clk 0:02:58]} 5. Nf3 {[%clk 0:02:54]}  a6 {[%clk 0:02:58]} 6. a3 {[%clk 0:02:54]}  dxc4 {[%clk 0:02:56]} 7. Bxc4 {[%clk 0:02:52]}  b5 {[%clk 0:02:57]} 8. Ba2 {[%clk 0:02:51]}  Bb7 {[%clk 0:02:57]} 9. O-O {[%clk 0:02:43]}  Nbd7 {[%clk 0:02:46]} 10. d5 {[%clk 0:02:37]}  exd5 {[%clk 0:02:46]} 11. Nxd5 {[%clk 0:02:36]}  Be7 {[%clk 0:02:45]} 12. Nxe7 {[%clk 0:02:35]}  Qxe7 {[%clk 0:02:45]} 13. b4 {[%clk 0:02:26]}  c4 {[%clk 0:02:32]} 14. Bb2 {[%clk 0:02:24]}  O-O {[%clk 0:02:31]} 15. Rc1 {[%clk 0:02:18]}  Rad8 {[%clk 0:02:29]} 16. Qe2 {[%clk 0:02:16]}  Ne4 {[%clk 0:02:18]} 17. Bb1 {[%clk 0:02:13]}  Rfe8 {[%clk 0:02:16]} 18. Rfd1 {[%clk 0:02:11]}  Ndf6 {[%clk 0:01:59]} 19. Nd4 {[%clk 0:02:07]}  Nd5 {[%clk 0:01:27]} 20. Nf5 {[%clk 0:01:56]}  Qg5 {[%clk 0:01:22]} 21. Nxg7 {[%clk 0:01:50]}  Ndc3 {[%clk 0:00:58]} 22. Bxc3 {[%clk 0:01:31]}  Nxc3 {[%clk 0:00:55]} 23. Qf1 {[%clk 0:01:30]}  Qxg7 {[%clk 0:00:46]} 24. Rxd8 {[%clk 0:01:27]}  Rxd8 {[%clk 0:00:45]} 25. Bf5 {[%clk 0:01:24]}  Ne2+ {[%clk 0:00:41]} 0-1


[Site "https://www.chess.com"]

[Event "Late Titled Tuesday Blitz February 8 2022"]
[White "Martinez Alcantara, Jose Eduardo"]
[Black "Ezat, Mohamed"]
[WhiteFideId "3805662"]
[BlackFideId "10600906"]
[WhiteElo "2690"]
[BlackElo "2386"]
[Result "1/2-1/2"]
[Round "02"]
[TimeControl "180+1"]
[Date "2022.02.08"]
[WhiteClock "0:00:56"]
[BlackClock "0:00:43"]

1. e4 {[%clk 0:02:59]}  c5 {[%clk 0:02:57]} 2. Nf3 {[%clk 0:02:57]}  Nc6 {[%clk 0:02:57]} 3. c3 {[%clk 0:02:57]}  Nf6 {[%clk 0:02:56]} 4. Bd3 {[%clk 0:02:57]}  d6 {[%clk 0:02:52]} 5. h3 {[%clk 0:02:56]}  g6 {[%clk 0:02:52]} 6. Bc2 {[%clk 0:02:57]}  Bg7 {[%clk 0:02:53]} 7. d4 {[%clk 0:02:58]}  O-O {[%clk 0:02:53]} 8. d5 {[%clk 0:02:58]}  Ne5 {[%clk 0:02:53]} 9. Nxe5 {[%clk 0:02:58]}  dxe5 {[%clk 0:02:54]} 10. c4 {[%clk 0:02:56]}  Ne8 {[%clk 0:02:54]} 11. Be3 {[%clk 0:02:56]}  Nd6 {[%clk 0:02:55]} 12. Qe2 {[%clk 0:02:45]}  b6 {[%clk 0:02:49]} 13. Nc3 {[%clk 0:02:45]}  f5 {[%clk 0:02:47]} 14. f3 {[%clk 0:02:38]}  a6 {[%clk 0:02:45]} 15. Bd3 {[%clk 0:02:20]}  Qc7 {[%clk 0:02:30]} 16. O-O-O {[%clk 0:02:10]}  b5 {[%clk 0:02:29]} 17. Kb1 {[%clk 0:02:07]}  bxc4 {[%clk 0:02:28]} 18. Bxc4 {[%clk 0:02:07]}  Bd7 {[%clk 0:02:28]} 19. Ka1 {[%clk 0:01:55]}  Rfb8 {[%clk 0:02:26]} 20. Bd3 {[%clk 0:01:53]}  Bb5 {[%clk 0:02:25]} 21. g4 {[%clk 0:01:48]}  f4 {[%clk 0:02:09]} 22. Bf2 {[%clk 0:01:48]}  Qa5 {[%clk 0:02:08]} 23. Rc1 {[%clk 0:01:39]}  Bxd3 {[%clk 0:02:03]} 24. Qxd3 {[%clk 0:01:39]}  Rb4 {[%clk 0:02:00]} 25. Rc2 {[%clk 0:01:31]}  Rab8 {[%clk 0:01:59]} 26. Rhc1 {[%clk 0:01:26]}  c4 {[%clk 0:01:57]} 27. Qd2 {[%clk 0:01:23]}  Nb5 {[%clk 0:01:56]} 28. Ne2 {[%clk 0:01:08]}  Qxa2+ {[%clk 0:01:55]} 29. Kxa2 {[%clk 0:01:03]}  Ra4+ {[%clk 0:01:55]} 30. Kb1 {[%clk 0:01:04]}  Na3+ {[%clk 0:01:54]} 31. Ka2 {[%clk 0:01:04]}  Nxc2+ {[%clk 0:01:52]} 32. Kb1 {[%clk 0:01:05]}  Na3+ {[%clk 0:01:47]} 33. Ka2 {[%clk 0:01:02]}  Nc2+ {[%clk 0:00:45]} 34. Kb1 {[%clk 0:01:02]}  Na3+ {[%clk 0:00:44]} 35. Ka2 {[%clk 0:00:56]}  Nc2+ {[%clk 0:00:43]} 1/2-1/2


[Site "https://www.chess.com"]

[Event "Late Titled Tuesday Blitz February 8 2022"]
[White "Martirosyan, Haik M."]
[Black "Tregubov, Pavel V."]
[WhiteFideId "13306553"]
[BlackFideId "4115341"]
[WhiteElo "2735"]
[BlackElo "2341"]
[Result "1-0"]
[Round "02"]
[TimeControl "180+1"]
[Date "2022.02.09"]
[WhiteClock "0:01:08"]
[BlackClock "0:01:05"]

1. c4 {[%clk 0:03:00]}  c5 {[%clk 0:02:58]} 2. Nc3 {[%clk 0:03:00]}  Nf6 {[%clk 0:02:58]} 3. g3 {[%clk 0:03:00]}  d5 {[%clk 0:02:58]} 4. cxd5 {[%clk 0:03:01]}  Nxd5 {[%clk 0:02:59]} 5. Bg2 {[%clk 0:03:02]}  Nc7 {[%clk 0:02:59]} 6. d3 {[%clk 0:03:01]}  e5 {[%clk 0:02:58]} 7. Be3 {[%clk 0:03:00]}  Nc6 {[%clk 0:02:48]} 8. Bxc6+ {[%clk 0:02:59]}  bxc6 {[%clk 0:02:48]} 9. Rc1 {[%clk 0:02:59]}  Ne6 {[%clk 0:02:45]} 10. Nf3 {[%clk 0:02:58]}  f6 {[%clk 0:02:42]} 11. Ne4 {[%clk 0:02:58]}  Nd4 {[%clk 0:02:40]} 12. O-O {[%clk 0:02:31]}  Bh3 {[%clk 0:02:21]} 13. Re1 {[%clk 0:02:29]}  Qb6 {[%clk 0:02:20]} 14. Nfd2 {[%clk 0:02:25]}  Be7 {[%clk 0:02:11]} 15. Nb3 {[%clk 0:02:18]}  Nxb3 {[%clk 0:02:00]} 16. axb3 {[%clk 0:02:18]}  O-O {[%clk 0:01:54]} 17. Bxc5 {[%clk 0:02:15]}  Bxc5 {[%clk 0:01:53]} 18. Nxc5 {[%clk 0:02:16]}  Rfd8 {[%clk 0:01:48]} 19. Qc2 {[%clk 0:02:14]}  Rab8 {[%clk 0:01:45]} 20. Ra1 {[%clk 0:02:09]}  a5 {[%clk 0:01:26]} 21. Qc3 {[%clk 0:02:06]}  Ra8 {[%clk 0:01:22]} 22. Ra4 {[%clk 0:02:05]}  Rd5 {[%clk 0:01:19]} 23. b4 {[%clk 0:02:03]}  Ra7 {[%clk 0:01:15]} 24. Qc4 {[%clk 0:01:57]}  axb4 {[%clk 0:01:11]} 25. Rxa7 {[%clk 0:01:34]}  Qxa7 {[%clk 0:01:10]} 26. e4 {[%clk 0:01:35]}  Qxc5 {[%clk 0:01:09]} 27. exd5 {[%clk 0:01:32]}  Qxd5 {[%clk 0:01:09]} 28. Rc1 {[%clk 0:01:13]}  Bf5 {[%clk 0:01:08]} 29. Qxc6 {[%clk 0:01:09]}  Qxc6 {[%clk 0:01:08]} 30. Rxc6 {[%clk 0:01:08]}  Bxd3 {[%clk 0:01:05]} 31. Rb6 {[%clk 0:01:08]} 1-0


[Site "https://www.chess.com"]

[Event "Late Titled Tuesday Blitz February 8 2022"]
[White "Mekhitarian, Krikor Sevag"]
[Black "Krstulovic, Alex"]
[WhiteFideId "2107660"]
[BlackFideId "760056"]
[WhiteElo "2598"]
[BlackElo "2193"]
[Result "1-0"]
[Round "02"]
[TimeControl "180+1"]
[Date "2022.02.08"]
[WhiteClock "0:00:03"]
[BlackClock "0:00:01"]

1. e4 {[%clk 0:03:00]}  c5 {[%clk 0:02:58]} 2. Nf3 {[%clk 0:03:00]}  e6 {[%clk 0:02:58]} 3. d4 {[%clk 0:02:56]}  cxd4 {[%clk 0:02:59]} 4. Nxd4 {[%clk 0:02:55]}  Nf6 {[%clk 0:02:59]} 5. Nc3 {[%clk 0:02:54]}  Nc6 {[%clk 0:02:59]} 6. Be2 {[%clk 0:02:44]}  Qc7 {[%clk 0:02:55]} 7. Be3 {[%clk 0:02:37]}  a6 {[%clk 0:02:53]} 8. O-O {[%clk 0:02:33]}  d6 {[%clk 0:02:45]} 9. f4 {[%clk 0:02:32]}  Nxd4 {[%clk 0:02:45]} 10. Bxd4 {[%clk 0:02:32]}  e5 {[%clk 0:02:45]} 11. Be3 {[%clk 0:02:29]}  Be6 {[%clk 0:02:44]} 12. f5 {[%clk 0:02:26]}  Bd7 {[%clk 0:02:44]} 13. Bg5 {[%clk 0:02:26]}  Be7 {[%clk 0:02:31]} 14. Bxf6 {[%clk 0:02:25]}  Bxf6 {[%clk 0:02:32]} 15. Nd5 {[%clk 0:02:25]}  Qc5+ {[%clk 0:02:32]} 16. Kh1 {[%clk 0:02:26]}  Bd8 {[%clk 0:02:31]} 17. Rf3 {[%clk 0:02:22]}  Bc6 {[%clk 0:02:21]} 18. Rd3 {[%clk 0:02:09]}  Rc8 {[%clk 0:02:11]} 19. b4 {[%clk 0:02:07]}  Qa7 {[%clk 0:02:08]} 20. c4 {[%clk 0:02:07]}  Bxd5 {[%clk 0:02:02]} 21. Rxd5 {[%clk 0:02:06]}  Be7 {[%clk 0:02:02]} 22. f6 {[%clk 0:01:25]}  Bxf6 {[%clk 0:01:54]} 23. Rxd6 {[%clk 0:01:21]}  O-O {[%clk 0:01:53]} 24. c5 {[%clk 0:01:19]}  Rfd8 {[%clk 0:01:39]} 25. Bc4 {[%clk 0:00:56]}  Qb8 {[%clk 0:01:13]} 26. Rd7 {[%clk 0:00:40]}  Rxd7 {[%clk 0:00:49]} 27. Qxd7 {[%clk 0:00:39]}  Rc7 {[%clk 0:00:49]} 28. Qd5 {[%clk 0:00:36]}  h6 {[%clk 0:00:39]} 29. Rd1 {[%clk 0:00:35]}  b6 {[%clk 0:00:29]} 30. c6 {[%clk 0:00:27]}  b5 {[%clk 0:00:23]} 31. Bb3 {[%clk 0:00:27]}  Qb6 {[%clk 0:00:23]} 32. Rc1 {[%clk 0:00:21]}  Qe3 {[%clk 0:00:20]} 33. Qd1 {[%clk 0:00:19]}  Qxe4 {[%clk 0:00:18]} 34. Bd5 {[%clk 0:00:19]}  Qxb4 {[%clk 0:00:18]} 35. g3 {[%clk 0:00:14]}  e4 {[%clk 0:00:17]} 36. Qe2 {[%clk 0:00:11]}  Bg5 {[%clk 0:00:15]} 37. Rf1 {[%clk 0:00:09]}  e3 {[%clk 0:00:13]} 38. Rxf7 {[%clk 0:00:08]}  Rxf7 {[%clk 0:00:10]} 39. Qf3 {[%clk 0:00:04]}  Qb1+ {[%clk 0:00:03]} 40. Kg2 {[%clk 0:00:04]}  Qc2+ {[%clk 0:00:02]} 41. Kh3 {[%clk 0:00:05]}  Kh8 {[%clk 0:00:01]} 42. Qxf7 {[%clk 0:00:04]}  Kh7 {[%clk 0:00:01]} 43. Qe6 {[%clk 0:00:03]} 1-0


[Site "https://www.chess.com"]

[Event "Late Titled Tuesday Blitz February 8 2022"]
[White "Mladenovic, Stefan"]
[Black "Svane, Rasmus"]
[WhiteFideId "942227"]
[BlackFideId "4657101"]
[WhiteElo "2355"]
[BlackElo "2645"]
[Result "0-1"]
[Round "02"]
[TimeControl "180+1"]
[Date "2022.02.08"]
[WhiteClock "0:00:02"]
[BlackClock "0:00:04"]

1. d4 {[%clk 0:03:00]}  Nf6 {[%clk 0:02:57]} 2. Nf3 {[%clk 0:03:01]}  d5 {[%clk 0:02:55]} 3. c4 {[%clk 0:03:00]}  e6 {[%clk 0:02:56]} 4. Nc3 {[%clk 0:03:00]}  a6 {[%clk 0:02:56]} 5. cxd5 {[%clk 0:02:59]}  exd5 {[%clk 0:02:57]} 6. Bg5 {[%clk 0:02:59]}  Be6 {[%clk 0:02:58]} 7. e3 {[%clk 0:02:59]}  Nbd7 {[%clk 0:02:58]} 8. Bd3 {[%clk 0:02:58]}  Bd6 {[%clk 0:02:58]} 9. O-O {[%clk 0:02:58]}  c6 {[%clk 0:02:59]} 10. Rb1 {[%clk 0:02:57]}  Qc7 {[%clk 0:02:58]} 11. h3 {[%clk 0:02:55]}  h6 {[%clk 0:02:57]} 12. Bxf6 {[%clk 0:02:53]}  Nxf6 {[%clk 0:02:58]} 13. b4 {[%clk 0:02:52]}  O-O {[%clk 0:02:56]} 14. a4 {[%clk 0:02:51]}  Rfe8 {[%clk 0:02:53]} 15. Qc2 {[%clk 0:02:51]}  g6 {[%clk 0:02:29]} 16. Rfc1 {[%clk 0:02:48]}  Kg7 {[%clk 0:02:28]} 17. b5 {[%clk 0:02:46]}  cxb5 {[%clk 0:02:22]} 18. axb5 {[%clk 0:02:42]}  Ba3 {[%clk 0:02:14]} 19. b6 {[%clk 0:02:28]}  Qe7 {[%clk 0:02:00]} 20. Rd1 {[%clk 0:02:24]}  Rec8 {[%clk 0:01:58]} 21. Qb3 {[%clk 0:02:22]}  Bd6 {[%clk 0:01:52]} 22. Rdc1 {[%clk 0:02:19]}  Rc6 {[%clk 0:01:37]} 23. Ne2 {[%clk 0:01:42]}  Rac8 {[%clk 0:01:32]} 24. Rxc6 {[%clk 0:01:42]}  Rxc6 {[%clk 0:01:33]} 25. Rc1 {[%clk 0:01:42]}  Rxc1+ {[%clk 0:01:21]} 26. Nxc1 {[%clk 0:01:43]}  Qd8 {[%clk 0:01:19]} 27. Ne2 {[%clk 0:00:31]}  Nd7 {[%clk 0:01:13]} 28. Nf4 {[%clk 0:00:30]}  Bxf4 {[%clk 0:01:06]} 29. exf4 {[%clk 0:00:31]}  Qxb6 {[%clk 0:01:07]} 30. Qc3 {[%clk 0:00:30]}  Nf6 {[%clk 0:00:38]} 31. Ne5 {[%clk 0:00:28]}  a5 {[%clk 0:00:24]} 32. g4 {[%clk 0:00:27]}  a4 {[%clk 0:00:21]} 33. f5 {[%clk 0:00:17]}  gxf5 {[%clk 0:00:22]} 34. gxf5 {[%clk 0:00:17]}  Bd7 {[%clk 0:00:21]} 35. Bc2 {[%clk 0:00:17]}  Qa6 {[%clk 0:00:15]} 36. Qg3+ {[%clk 0:00:16]}  Kf8 {[%clk 0:00:16]} 37. Qh4 {[%clk 0:00:16]}  Ke7 {[%clk 0:00:12]} 38. Qxh6 {[%clk 0:00:11]}  Be8 {[%clk 0:00:08]} 39. Qg7 {[%clk 0:00:08]}  a3 {[%clk 0:00:08]} 40. Bb3 {[%clk 0:00:07]}  Qb6 {[%clk 0:00:06]} 41. Ba2 {[%clk 0:00:03]}  Qxd4 {[%clk 0:00:07]} 42. Ng6+ {[%clk 0:00:03]}  Kd8 {[%clk 0:00:06]} 43. Bb3 {[%clk 0:00:03]}  fxg6 {[%clk 0:00:05]} 44. fxg6 {[%clk 0:00:02]}  Qe5 {[%clk 0:00:04]} 0-1


[Site "https://www.chess.com"]

[Event "Late Titled Tuesday Blitz February 8 2022"]
[White "Moreira, Ronaldo Alonso"]
[Black "Karas, Marek"]
[WhiteFideId "2110547"]
[BlackFideId "14928558"]
[WhiteElo "2037"]
[BlackElo "2270"]
[Result "0-1"]
[Round "02"]
[TimeControl "180+1"]
[Date "2022.02.09"]
[WhiteClock "0:00:02"]
[BlackClock "0:01:40"]

1. d4 {[%clk 0:03:00]}  Nf6 {[%clk 0:02:59]} 2. c4 {[%clk 0:03:01]}  c5 {[%clk 0:02:58]} 3. d5 {[%clk 0:03:01]}  b5 {[%clk 0:02:57]} 4. cxb5 {[%clk 0:03:02]}  a6 {[%clk 0:02:56]} 5. bxa6 {[%clk 0:03:02]}  e6 {[%clk 0:02:56]} 6. dxe6 {[%clk 0:02:48]}  fxe6 {[%clk 0:02:57]} 7. g3 {[%clk 0:02:44]}  Bxa6 {[%clk 0:02:55]} 8. Bg2 {[%clk 0:02:42]}  d5 {[%clk 0:02:55]} 9. Nf3 {[%clk 0:02:38]}  Bd6 {[%clk 0:02:55]} 10. O-O {[%clk 0:02:36]}  O-O {[%clk 0:02:54]} 11. Re1 {[%clk 0:02:22]}  Nc6 {[%clk 0:02:54]} 12. Ng5 {[%clk 0:02:15]}  Qd7 {[%clk 0:02:50]} 13. e4 {[%clk 0:02:08]}  Be5 {[%clk 0:02:33]} 14. exd5 {[%clk 0:02:02]}  exd5 {[%clk 0:02:34]} 15. Nc3 {[%clk 0:01:34]}  Rad8 {[%clk 0:02:21]} 16. Qa4 {[%clk 0:01:05]}  Bb7 {[%clk 0:02:13]} 17. Qh4 {[%clk 0:00:54]}  h6 {[%clk 0:02:09]} 18. Nf3 {[%clk 0:00:53]}  Bb8 {[%clk 0:02:00]} 19. b3 {[%clk 0:00:45]}  Nb4 {[%clk 0:01:55]} 20. Bh3 {[%clk 0:00:26]}  Qc6 {[%clk 0:01:46]} 21. Re6 {[%clk 0:00:17]}  Rd6 {[%clk 0:01:46]} 22. Rxd6 {[%clk 0:00:06]}  Qxd6 {[%clk 0:01:46]} 23. Bf4 {[%clk 0:00:06]}  Qc6 {[%clk 0:01:45]} 24. Bxb8 {[%clk 0:00:06]}  Rxb8 {[%clk 0:01:46]} 25. Rd1 {[%clk 0:00:05]}  d4 {[%clk 0:01:46]} 26. Bg2 {[%clk 0:00:02]}  dxc3 {[%clk 0:01:45]} 27. Qc4+ {[%clk 0:00:02]}  Kh8 {[%clk 0:01:44]} 28. Nh4 {[%clk 0:00:02]}  c2 {[%clk 0:01:40]} 0-1


[Site "https://www.chess.com"]

[Event "Late Titled Tuesday Blitz February 8 2022"]
[White "Musovic, Armin"]
[Black "Prieto Aranguren, Alain"]
[WhiteFideId "939935"]
[BlackFideId "2268906"]
[WhiteElo "2250"]
[BlackElo "2235"]
[Result "1-0"]
[Round "02"]
[TimeControl "180+1"]
[Date "2022.02.09"]
[WhiteClock "0:01:16"]
[BlackClock "0:00:58"]

1. a3 {[%clk 0:03:00]}  a5 {[%clk 0:02:57]} 2. Nc3 {[%clk 0:03:01]}  d5 {[%clk 0:02:57]} 3. e4 {[%clk 0:03:02]}  d4 {[%clk 0:02:57]} 4. Nce2 {[%clk 0:03:02]}  e5 {[%clk 0:02:57]} 5. Ng3 {[%clk 0:03:02]}  c5 {[%clk 0:02:52]} 6. Bb5+ {[%clk 0:03:02]}  Nc6 {[%clk 0:02:52]} 7. d3 {[%clk 0:03:02]}  a4 {[%clk 0:02:48]} 8. Bd2 {[%clk 0:03:01]}  h5 {[%clk 0:02:46]} 9. Nxh5 {[%clk 0:03:01]}  Bd7 {[%clk 0:02:39]} 10. Ng3 {[%clk 0:02:59]}  Nf6 {[%clk 0:02:35]} 11. h3 {[%clk 0:02:59]}  Qb6 {[%clk 0:02:29]} 12. Bxc6 {[%clk 0:02:58]}  Bxc6 {[%clk 0:02:29]} 13. Rb1 {[%clk 0:02:58]}  Bd6 {[%clk 0:02:28]} 14. Nf5 {[%clk 0:02:58]}  Bf8 {[%clk 0:02:26]} 15. Ng3 {[%clk 0:02:59]}  Bd7 {[%clk 0:02:20]} 16. N1e2 {[%clk 0:02:58]}  Rc8 {[%clk 0:02:19]} 17. O-O {[%clk 0:02:56]}  Be6 {[%clk 0:02:09]} 18. f4 {[%clk 0:02:55]}  exf4 {[%clk 0:01:58]} 19. Nxf4 {[%clk 0:02:50]}  Bd6 {[%clk 0:01:57]} 20. e5 {[%clk 0:02:31]}  Bxe5 {[%clk 0:01:52]} 21. Re1 {[%clk 0:02:31]}  Qc7 {[%clk 0:01:39]} 22. Qf3 {[%clk 0:02:31]}  O-O {[%clk 0:01:32]} 23. Re2 {[%clk 0:02:19]}  Bxf4 {[%clk 0:01:21]} 24. Bxf4 {[%clk 0:02:19]}  Qd7 {[%clk 0:01:19]} 25. Rbe1 {[%clk 0:01:56]}  Nd5 {[%clk 0:01:18]} 26. Bd2 {[%clk 0:01:54]}  c4 {[%clk 0:01:11]} 27. Ne4 {[%clk 0:01:42]}  cxd3 {[%clk 0:01:11]} 28. cxd3 {[%clk 0:01:32]}  Rc2 {[%clk 0:01:10]} 29. Qg3 {[%clk 0:01:23]}  Ne3 {[%clk 0:00:58]} 30. Nf6+ {[%clk 0:01:16]} 1-0


[Site "https://www.chess.com"]

[Event "Late Titled Tuesday Blitz February 8 2022"]
[White "Nepomniachtchi, Ian"]
[Black "Suder, Jakub"]
[WhiteFideId "4168119"]
[BlackFideId "1195310"]
[WhiteElo "2740"]
[BlackElo "2058"]
[Result "1-0"]
[Round "02"]
[TimeControl "180+1"]
[Date "2022.02.09"]
[WhiteClock "0:01:26"]
[BlackClock "0:00:13"]

1. e4 {[%clk 0:03:00]}  c5 {[%clk 0:02:59]} 2. Nf3 {[%clk 0:02:58]}  e6 {[%clk 0:02:59]} 3. d4 {[%clk 0:02:58]}  cxd4 {[%clk 0:03:00]} 4. Nxd4 {[%clk 0:02:59]}  Nc6 {[%clk 0:03:00]} 5. Nc3 {[%clk 0:03:00]}  Nf6 {[%clk 0:02:56]} 6. Ndb5 {[%clk 0:02:59]}  Bc5 {[%clk 0:02:55]} 7. Bf4 {[%clk 0:02:57]}  O-O {[%clk 0:02:55]} 8. Bc7 {[%clk 0:02:57]}  Qe7 {[%clk 0:02:55]} 9. Bd6 {[%clk 0:02:58]}  Bxd6 {[%clk 0:02:51]} 10. Qxd6 {[%clk 0:02:59]}  Qd8 {[%clk 0:02:48]} 11. h4 {[%clk 0:02:59]}  a6 {[%clk 0:02:45]} 12. Nd4 {[%clk 0:02:56]}  Qb6 {[%clk 0:02:35]} 13. Nxc6 {[%clk 0:02:50]}  bxc6 {[%clk 0:02:19]} 14. O-O-O {[%clk 0:02:38]}  Qxf2 {[%clk 0:02:12]} 15. Bd3 {[%clk 0:02:38]}  Ne8 {[%clk 0:02:06]} 16. Qh2 {[%clk 0:02:34]}  d6 {[%clk 0:01:57]} 17. Rhf1 {[%clk 0:02:32]}  Qe3+ {[%clk 0:01:57]} 18. Kb1 {[%clk 0:02:32]}  e5 {[%clk 0:01:56]} 19. Bc4 {[%clk 0:02:28]}  Be6 {[%clk 0:01:48]} 20. Rf3 {[%clk 0:02:21]}  Qh6 {[%clk 0:01:42]} 21. Bxe6 {[%clk 0:02:15]}  Qxe6 {[%clk 0:01:38]} 22. g4 {[%clk 0:02:14]}  Rd8 {[%clk 0:01:32]} 23. g5 {[%clk 0:02:12]}  d5 {[%clk 0:01:27]} 24. Rf5 {[%clk 0:01:59]}  f6 {[%clk 0:01:18]} 25. gxf6 {[%clk 0:01:57]}  gxf6 {[%clk 0:01:12]} 26. Qf2 {[%clk 0:01:51]}  Ng7 {[%clk 0:01:08]} 27. Rg1 {[%clk 0:01:49]}  Kh8 {[%clk 0:01:07]} 28. Rf3 {[%clk 0:01:47]}  f5 {[%clk 0:00:51]} 29. exf5 {[%clk 0:01:37]}  Rxf5 {[%clk 0:00:45]} 30. Qa7 {[%clk 0:01:35]}  Rg8 {[%clk 0:00:41]} 31. Rfg3 {[%clk 0:01:34]}  Qf6 {[%clk 0:00:35]} 32. Qxa6 {[%clk 0:01:33]}  e4 {[%clk 0:00:21]} 33. a4 {[%clk 0:01:32]}  Rf3 {[%clk 0:00:14]} 34. a5 {[%clk 0:01:26]}  Rxg3 {[%clk 0:00:14]} 35. Rxg3 {[%clk 0:01:27]}  Nf5 {[%clk 0:00:14]} 36. Rxg8+ {[%clk 0:01:27]}  Kxg8 {[%clk 0:00:15]} 37. Qc8+ {[%clk 0:01:27]}  Kg7 {[%clk 0:00:14]} 38. a6 {[%clk 0:01:27]}  Qe7 {[%clk 0:00:13]} 39. Qb7 {[%clk 0:01:26]} 1-0


[Site "https://www.chess.com"]